bitfinex-derivatives/quotes_SOLF0:USTF0_20250520
["timestamp","ask_amount","ask_price","bid_price","bid_amount"]
[1747753491760,0.03952176,165.9,165.87,1.50682059]
[1747753492261,0.03952176,165.9,165.88,6.0267]
[1747753492563,6.06572176,165.9,165.87,1.50682059]
[1747753492860,0.03952176,165.9,165.87,1.50682059]
[1747753493255,6.0266,165.89,165.86,6.0272]
[1747753494265,6.0267,165.88,165.86,6.0272]
[1747753494663,0.03952176,165.9,165.86,6.0272]
[1747753494864,6.0265,165.89,165.86,6.0272]
[1747753497364,6.0265,165.89,165.87,1.5069404]
[1747753498667,6.0265,165.89,165.86,6.0272]
[1747753499076,6.0265,165.89,165.87,6.027]
[1747753499774,6.0265,165.89,165.83,162.15815727]
[1747753499775,6.0265,165.89,165.86,6.0273]
[1747753500662,6.06562176,165.9,165.87,6.027]
[1747753501271,6.0263,165.89,165.86,6.0273]
[1747753501464,0.03952176,165.9,165.83,162.17815727]
[1747753502461,6.0267,165.88,165.85,6.0277]
[1747753502670,0.03952176,165.9,165.83,162.17815727]
[1747753503069,0.03952176,165.9,165.89,6.0263]
[1747753504475,1.9356,165.98,165.95,6.0241]
[1747753504773,62.76,166.0,165.88,10.12769155]
[1747753505074,62.76,166.0,165.87,62.76]
[1747753505075,62.76,166.0,165.89,1.50699528]
[1747753505476,0.04223083,165.96,165.94,6.0242]
[1747753505676,0.04223083,165.96,165.93,0.03952176]
[1747753506270,0.04223083,165.96,165.95,6.0242]
[1747753507574,520.82,166.07,165.95,62.76]
[1747753507766,62.76,166.06,165.95,62.76]
[1747753508162,62.76,166.06,165.96,11.63370333]
[1747753508370,17.19390115,166.08,165.96,11.63370333]
[1747753508568,0.04592776,166.04,166.03,6.0212]
[1747753509775,11.17430115,166.08,166.06,6.0198]
[1747753509976,583.52,166.15,166.04,62.76]
[1747753510176,6.0186,166.11,166.05,62.76]
[1747753510677,6.0186,166.11,166.07,6.0195]
[1747753510872,6.0189,166.1,166.07,6.05983185]
[1747753511380,6.0189,166.1,166.07,0.04033185]
[1747753511771,6.05669231,166.11,166.07,0.04033185]
[1747753511973,6.05669231,166.11,166.07,6.06013185]
[1747753512171,6.05669231,166.11,166.07,0.04033185]
[1747753512172,0.03829231,166.11,166.07,0.04033185]
[1747753513882,6.0194,166.08,166.07,0.04033185]
[1747753517980,6.0211,166.04,166.02,62.72]
[1747753518180,1.9126,166.08,165.99,62.72]
[1747753518386,1.9126,166.08,165.98,583.48]
[1747753518982,0.03986236,166.05,166.01,0.0456356]
[1747753519185,0.03986236,166.05,166.01,62.7656356]
[1747753520385,0.03986236,166.05,166.02,6.0214]
[1747753520688,0.03986236,166.05,166.01,62.7656356]
[1747753522287,6.0212,166.04,166.01,62.7656356]
[1747753522476,0.03986236,166.05,166.01,62.7656356]
[1747753523083,0.03986236,166.05,166.01,0.0456356]
[1747753523478,6.0214,166.03,166.01,0.0456356]
[1747753524081,0.03986236,166.05,166.01,0.0456356]
[1747753524485,6.0216,166.03,166.01,0.0456356]
[1747753524686,0.03986236,166.05,166.01,0.0456356]
[1747753525088,6.0216,166.02,166.01,0.0456356]
[1747753526078,62.64,166.02,165.94,6.0244]
[1747753526387,10.12769155,166.01,165.93,62.64]
[1747753526793,6.0234,165.97,165.93,68.6646]
[1747753527097,6.0234,165.97,165.93,68.70631291]
[1747753527098,6.06514689,165.97,165.93,68.70631291]
[1747753527279,6.06514689,165.97,165.94,6.0244]
[1747753528992,0.04174689,165.97,165.94,6.0244]
[1747753529190,0.04174689,165.97,165.95,6.0241]
[1747753530497,6.06514689,165.97,165.93,62.68171291]
[1747753531288,6.06514689,165.97,165.93,68.70641291]
[1747753533295,0.04174689,165.97,165.93,0.04171291]
[1747753533791,6.0262,165.9,165.86,6.0272]
[1747753533991,62.66,165.94,165.85,62.66]
[1747753534194,10.12769155,165.92,165.85,62.66]
[1747753534389,6.0266,165.89,165.85,6.0275]
[1747753534594,0.04382914,165.89,165.85,6.0275]
[1747753534994,0.04382914,165.89,165.86,6.0274]
[1747753535196,0.04382914,165.89,165.83,162.07815727]
[1747753535594,0.04382914,165.89,165.88,6.0267]
[1747753536989,0.04382914,165.89,165.87,6.0269]
[1747753537800,0.04382914,165.89,165.85,6.0277]
[1747753538102,0.04382914,165.89,165.83,62.66]
[1747753538494,6.0269,165.88,165.84,6.0279]
[1747753538695,6.0269,165.88,165.83,62.66]
[1747753539597,10.17152069,165.89,165.83,62.66]
[1747753539801,10.17152069,165.89,165.78,520.52]
[1747753539999,0.04247897,165.85,165.79,62.68]
[1747753540202,0.04247897,165.85,165.82,6.0288]
[1747753541204,6.07037897,165.85,165.81,6.0291]
[1747753541595,6.0283,165.84,165.8,6.0295]
[1747753541901,0.04247897,165.85,165.79,62.68]
[1747753542302,6.07037897,165.85,165.81,6.029]
[1747753543705,6.0282,165.84,165.8,6.0295]
[1747753544094,0.04247897,165.85,165.79,62.68]
[1747753544698,0.04247897,165.85,165.76,62.7]
[1747753544906,0.04400101,165.82,165.76,62.7]
[1747753546198,6.0304,165.78,165.76,62.7]
[1747753546402,0.04006727,165.79,165.7,520.82]
[1747753546594,0.03909536,165.76,165.72,62.7]
[1747753546799,0.03909536,165.76,165.74,6.0317]
[1747753546997,0.03909536,165.76,165.72,62.7]
[1747753547505,0.03909536,165.76,165.75,6.0314]
[1747753548007,2.0238,165.87,165.75,6.04]
[1747753548199,62.7,165.88,165.77,10.12769155]
[1747753548403,62.7,165.88,165.78,62.7]
[1747753548807,0.03898941,165.85,165.81,0.03909536]
[1747753549004,0.03898941,165.85,165.82,62.7]
[1747753549511,0.03898941,165.85,165.84,6.0281]
[1747753551705,64.7238,165.92,165.82,62.7]
[1747753551909,6.0258,165.91,165.82,62.7]
[1747753552300,64.7238,165.92,165.82,62.7]
[1747753552500,0.04475104,165.89,165.85,0.0387232]
[1747753552701,0.04475104,165.89,165.88,6.0267]
[1747753553413,0.04475104,165.89,165.85,0.0387232]
[1747753554005,6.0269,165.88,165.85,0.0387232]
[1747753554809,0.04475104,165.89,165.85,0.0387232]
[1747753556009,0.04475104,165.89,165.86,6.0274]
[1747753557615,0.04475104,165.89,165.87,6.0271]
[1747753558312,0.04475104,165.89,165.86,6.0274]
[1747753559512,0.04475104,165.89,165.85,0.0387232]
[1747753559905,0.04475104,165.89,165.88,6.0267]
[1747753563217,62.64,165.95,165.91,6.0253]
[1747753563413,1.9853,165.97,165.86,62.64]
[1747753563614,62.64,166.01,165.87,62.64]
[1747753564315,0.03925039,165.96,165.92,0.04493847]
[1747753565311,0.03925039,165.96,165.93,6.0248]
[1747753565508,0.03925039,165.96,165.92,0.04493847]
[1747753566519,0.03925039,165.96,165.93,6.0248]
[1747753566813,0.03925039,165.96,165.92,0.04493847]
[1747753567321,6.0242,165.95,165.92,0.04493847]
[1747753568015,0.03925039,165.96,165.92,0.04493847]
[1747753568318,62.62,166.07,166.0,6.0223]
[1747753568522,6.0209,166.05,165.98,62.62]
[1747753568821,4.0371,166.09,165.99,62.62]
[1747753569023,6.0197,166.08,166.04,6.0209]
[1747753569417,6.06038616,166.08,166.04,6.06016037]
[1747753569816,0.04068616,166.08,166.04,0.03926037]
[1747753570420,6.0205,166.05,166.04,0.03926037]
[1747753573326,6.0216,166.03,165.98,6.023]
[1747753573522,62.6,166.06,165.97,62.62]
[1747753574128,66.6371,166.09,165.97,62.62]
[1747753574323,0.03906656,166.05,166.01,0.03915765]
[1747753574530,0.03906656,166.05,166.02,62.6]
[1747753575427,0.03906656,166.05,166.04,6.0209]
[1747753579031,4.1448,166.15,166.04,6.02]
[1747753579226,6.0179,166.13,166.02,68.3391]
[1747753579636,6.0179,166.13,166.09,6.0188]
[1747753579933,6.0179,166.13,166.09,6.05917182]
[1747753579934,6.06281728,166.13,166.09,6.05917182]
[1747753580132,6.018,166.12,166.09,6.05917182]
[1747753580647,0.04491728,166.13,166.09,0.04037182]
[1747753581140,6.0186,166.11,166.09,0.04037182]
[1747753581735,6.0181,166.12,166.09,6.05947182]
[1747753582335,6.06271728,166.13,166.1,6.0185]
[1747753583644,6.018,166.12,166.1,6.0185]
[1747753584137,0.04491728,166.13,166.11,6.0183]
[1747753585943,0.04491728,166.13,166.1,6.0186]
[1747753586535,6.06271728,166.13,166.1,6.0186]
[1747753587335,0.04491728,166.13,166.11,6.0183]
[1747753588145,6.06261728,166.13,166.11,6.0183]
[1747753588443,6.06261728,166.13,166.1,6.0186]
[1747753588942,0.04491728,166.13,166.11,6.0183]
[1747753589142,0.04491728,166.13,166.09,0.04037182]
[1747753589343,6.06271728,166.13,166.1,6.0187]
[1747753590840,6.06271728,166.13,166.11,6.0183]
[1747753591040,0.04491728,166.13,166.09,0.04037182]
[1747753591240,0.04491728,166.13,166.1,62.5]
[1747753591546,0.04491728,166.13,166.12,6.018]
[1747753592437,4.0475,166.2,166.16,6.0163]
[1747753592438,10.0629,166.2,166.16,6.0163]
[1747753592638,4.0475,166.2,166.16,6.0163]
[1747753593540,6.0157,166.19,166.16,6.06214931]
[1747753593745,4.09116831,166.2,166.16,0.04584931]
[1747753594143,6.0162,166.17,166.16,0.04584931]
[1747753594347,4.09116831,166.2,166.16,0.04584931]
[1747753594751,6.0157,166.19,166.16,0.04584931]
[1747753594947,6.0157,166.19,166.16,6.06244931]
[1747753595340,6.0159,166.18,166.16,0.04584931]
[1747753595943,6.0162,166.17,166.16,0.04584931]
[1747753598353,62.52366831,166.2,166.09,62.48]
[1747753598548,2.0167,166.16,166.06,62.48]
[1747753598746,6.0188,166.1,166.06,68.5]
[1747753598950,64.3974,166.15,166.06,62.48]
[1747753599251,0.03973274,166.12,166.09,0.04021807]
[1747753601552,6.0185,166.11,166.09,0.04021807]
[1747753601849,0.03973274,166.12,166.09,0.04021807]
[1747753602050,6.0187,166.1,166.09,0.04021807]
[1747753602345,0.03973274,166.12,166.09,0.04021807]
[1747753602551,6.0185,166.11,166.09,0.04021807]
[1747753602950,0.03973274,166.12,166.09,0.04021807]
[1747753603153,6.0187,166.1,166.09,0.04021807]
[1747753603739,0.03973274,166.12,166.09,0.04021807]
[1747753604652,0.03973274,166.12,166.1,6.0184]
[1747753604861,0.03973274,166.12,166.09,0.04021807]
[1747753606053,0.03973274,166.12,166.11,6.0184]
[1747753607462,0.03973274,166.12,166.09,0.04021807]
[1747753608058,0.03973274,166.12,166.09,6.05901807]
[1747753608463,0.03973274,166.12,166.09,0.04021807]
[1747753608661,6.05793274,166.12,166.09,0.04021807]
[1747753609159,6.0184,166.11,166.09,0.04021807]
[1747753609364,0.03973274,166.12,166.09,0.04021807]
[1747753611052,6.0187,166.1,166.09,0.04021807]
[1747753611260,62.48,166.1,166.04,1.50497782]
[1747753611461,6.0197,166.08,166.04,7.52567782]
[1747753611962,6.0197,166.08,166.04,6.0207]
[1747753612259,0.04223088,166.08,166.05,6.0205]
[1747753612456,0.04223088,166.08,166.04,0.04384765]
[1747753612651,0.04223088,166.08,166.04,62.46384765]
[1747753613353,0.04223088,166.08,166.07,6.0198]
[1747753613754,0.04223088,166.08,166.04,62.46384765]
[1747753614456,6.0202,166.06,166.04,62.46384765]
[1747753614653,0.04223088,166.08,166.04,62.46384765]
[1747753615466,6.06183088,166.08,166.04,68.48464765]
[1747753616259,0.04223088,166.08,166.05,6.0206]
[1747753617162,6.06173088,166.08,166.05,6.0206]
[1747753617365,0.04223088,166.08,166.04,0.04384765]
[1747753617763,6.0204,166.06,166.04,0.04384765]
[1747753619763,6.0206,166.05,166.04,0.04384765]
[1747753620459,6.0216,166.02,166.0,0.99385402]
[1747753620663,3.8691,166.07,166.0,0.99385402]
[1747753620959,6.022,166.01,166.0,0.99385402]
[1747753621163,62.44,166.05,165.97,0.99385402]
[1747753621470,6.0224,166.0,165.99,0.04377688]
[1747753622067,6.0221,166.01,165.99,0.04377688]
[1747753622365,0.03999194,166.03,165.99,0.04377688]
[1747753623870,0.03999194,166.03,166.01,6.0217]
[1747753624369,0.03999194,166.03,165.99,0.04377688]
[1747753624966,6.0222,166.01,165.99,0.04377688]
[1747753625266,0.03999194,166.03,165.99,0.04377688]
[1747753626870,6.0224,166.0,165.99,0.04377688]
[1747753627169,0.03999194,166.03,165.94,63.94600975]
[1747753627372,62.46,166.02,165.94,1.50600975]
[1747753627972,2.0665,166.01,165.92,620.57046671]
[1747753628272,0.04350032,165.99,165.95,0.03311776]
[1747753628765,62.46,165.98,165.92,0.99385402]
[1747753628965,2.0466,165.97,165.92,0.99385402]
[1747753630072,6.0245,165.95,165.92,0.99385402]
[1747753630273,0.04367912,165.95,165.89,62.46]
[1747753630777,6.0248,165.94,165.9,6.0258]
[1747753631577,6.0249,165.93,165.9,6.0258]
[1747753631879,0.04367912,165.95,165.86,62.46]
[1747753632175,6.026,165.9,165.85,62.46]
[1747753633277,6.026,165.9,165.85,6.0275]
[1747753633574,0.04611434,165.92,165.83,63.47385402]
[1747753633879,0.03839493,165.89,165.83,62.48]
[1747753634579,0.03839493,165.89,165.86,6.0273]
[1747753635282,0.03839493,165.89,165.87,62.48]
[1747753635473,62.48,165.98,165.88,62.48]
[1747753635673,62.48,165.98,165.89,62.48]
[1747753635882,6.024,165.96,165.89,62.48]
[1747753636385,62.48,165.98,165.89,62.48]
[1747753636691,0.03841058,165.95,165.91,0.03839493]
[1747753636987,6.0248,165.94,165.91,0.03839493]
[1747753637191,0.03841058,165.95,165.91,0.03839493]
[1747753638886,6.06261058,165.95,165.92,6.025]
[1747753639084,0.03841058,165.95,165.91,0.03839493]
[1747753639494,0.03841058,165.95,165.92,6.025]
[1747753639693,0.03841058,165.95,165.91,0.03839493]
[1747753640496,6.06281058,165.95,165.92,6.025]
[1747753640996,6.0245,165.94,165.91,6.06389493]
[1747753641496,0.03841058,165.95,165.91,0.03839493]
[1747753641698,6.0251,165.93,165.91,0.03839493]
[1747753641998,0.03841058,165.95,165.91,0.03839493]
[1747753642397,62.44,165.94,165.91,0.03839493]
[1747753642598,6.0265,165.89,165.85,6.0278]
[1747753643397,6.0262,165.9,165.86,6.0274]
[1747753643603,0.0413144,165.9,165.83,62.44]
[1747753643995,0.0413144,165.9,165.89,6.0264]
[1747753644198,3.9299,165.99,165.89,62.44]
[1747753644508,62.44,166.01,165.89,62.44]
[1747753644509,6.0223,166.01,165.89,78.66439865]
[1747753644701,6.0223,166.01,165.9,4.0701]
[1747753645100,1.9901,166.03,165.9,4.0701]
[1747753645299,0.04321257,165.97,165.94,0.0413144]
[1747753646399,0.04321257,165.97,165.96,6.0238]
[1747753647705,6.0214,166.03,166.0,6.0222]
[1747753648802,0.04582637,166.03,166.0,0.03858333]
[1747753649196,0.04582637,166.03,166.01,62.42]
[1747753649394,0.04582637,166.03,166.02,6.0216]
[1747753652312,2.637e-05,166.03,166.02,6.0216]
[1747753652502,2.637e-05,166.03,166.02,8.0793]
[1747753652899,6.0181,166.12,166.09,6.019]
[1747753653303,2.0707,166.15,166.06,62.42]
[1747753653513,62.42,166.16,166.11,6.0182]
[1747753653701,64.3175,166.19,166.07,1.9017]
[1747753653900,0.04321933,166.15,166.11,0.04591749]
[1747753654812,6.0174,166.14,166.11,0.04591749]
[1747753655015,0.04321933,166.15,166.11,0.04591749]
[1747753658606,6.06021933,166.15,166.11,0.04591749]
[1747753659013,0.04321933,166.15,166.11,0.04591749]
[1747753659620,6.0174,166.14,166.11,0.04591749]
[1747753660217,0.04321933,166.15,166.11,0.04591749]
[1747753661521,0.04321933,166.15,166.11,62.42591749]
[1747753662815,0.04321933,166.15,166.13,6.0176]
[1747753663520,0.04321933,166.15,166.12,6.018]
[1747753664523,6.06031933,166.15,166.11,68.44421749]
[1747753664915,0.04321933,166.15,166.11,62.42591749]
[1747753665923,0.04321933,166.15,166.12,6.0178]
[1747753666623,0.04321933,166.15,166.11,62.42591749]
[1747753667121,0.04321933,166.15,166.11,0.04591749]
[1747753668919,6.0174,166.14,166.11,0.04591749]
[1747753669117,0.04321933,166.15,166.11,0.04591749]
[1747753669520,520.12,166.31,166.11,0.04591749]
[1747753669723,4.1124,166.27,166.13,16.22439865]
[1747753670017,6.0124,166.28,166.14,62.36]
[1747753670417,11.17430115,166.32,166.17,16.22439865]
[1747753670614,62.36,166.33,166.28,6.0121]
[1747753670818,0.04115878,166.32,166.29,0.04430166]
[1747753671219,6.05195878,166.32,166.29,6.05610166]
[1747753671728,0.04115878,166.32,166.29,0.04430166]
[1747753673222,6.0115,166.3,166.29,0.04430166]
[1747753673415,62.34115878,166.32,166.23,62.3]
[1747753673622,62.3,166.32,166.23,62.3]
[1747753673823,62.3,166.32,166.24,6.0134]
[1747753674628,0.04630334,166.3,166.26,0.04012197]
[1747753675035,6.0125,166.28,166.26,0.04012197]
[1747753675220,0.04630334,166.3,166.26,0.04012197]
[1747753675631,6.0126,166.27,166.26,0.04012197]
[1747753677235,4.0429,166.29,166.18,520.12]
[1747753677431,62.3,166.28,166.19,62.3]
[1747753677834,6.0143,166.23,166.19,62.3]
[1747753678235,6.05712294,166.23,166.19,62.34021505]
[1747753678539,6.05712294,166.23,166.19,68.35571505]
[1747753678930,0.04282294,166.23,166.19,62.34021505]
[1747753679441,6.0145,166.22,166.19,62.34021505]
[1747753680539,6.0148,166.21,166.19,62.34021505]
[1747753680941,0.04282294,166.23,166.19,62.34021505]
[1747753681740,6.05712294,166.23,166.19,68.35541505]
[1747753682245,6.0147,166.22,166.19,62.34021505]
[1747753682546,62.32282294,166.23,166.19,0.04021505]
[1747753683041,6.0151,166.2,166.19,0.04021505]
[1747753683540,6.017,166.15,166.1,588.1385]
[1747753683945,64.2591,166.19,166.1,582.12]
[1747753684243,64.2591,166.19,166.11,6.0181]
[1747753684542,0.04293599,166.17,166.13,0.04331709]
[1747753685849,6.0172,166.15,166.13,0.04331709]
[1747753686649,6.0173,166.14,166.13,0.04331709]
[1747753687249,6.0184,166.12,166.06,62.3]
[1747753687552,62.3,166.15,166.06,62.3]
[1747753687854,6.0184,166.11,166.06,62.3]
[1747753688050,62.3,166.15,166.06,62.3]
[1747753688254,0.04489638,166.12,166.06,62.3]
[1747753688449,0.04489638,166.12,166.03,1.50493203]
[1747753688748,62.3,166.11,166.03,63.80493203]
[1747753688947,0.04615189,166.09,166.03,63.80493203]
[1747753689345,0.04615189,166.09,166.03,62.3]
[1747753689943,0.04615189,166.09,166.08,6.0195]
[1747753690154,1.9073,166.18,166.08,62.3]
[1747753690454,7.9234,166.18,166.15,6.0169]
[1747753690751,1.9791,166.19,166.15,6.0169]
[1747753691240,2.02083899,166.19,166.15,0.04273376]
[1747753691649,6.0162,166.18,166.15,0.04273376]
[1747753692454,8.03643899,166.19,166.15,6.05963376]
[1747753692655,2.02083899,166.19,166.15,6.05963376]
[1747753693059,0.04173899,166.19,166.15,0.04273376]
[1747753693450,6.0163,166.17,166.15,0.04273376]
[1747753693852,0.04173899,166.19,166.15,0.04273376]
[1747753694051,6.0166,166.16,166.15,0.04273376]
[1747753694248,1.9028,166.18,166.09,62.32]
[1747753694652,6.0155,166.2,166.15,6.0167]
[1747753694853,62.32,166.21,166.15,6.0167]
[1747753695161,6.0157,166.19,166.15,6.0167]
[1747753695455,0.04150392,166.2,166.14,6.0173]
[1747753695658,0.04071491,166.19,166.09,62.32]
[1747753695851,0.03951563,166.16,166.13,6.0174]
[1747753696052,0.03951563,166.16,166.09,62.32]
[1747753697061,0.03951563,166.16,166.15,6.0169]
[1747753697855,0.03951563,166.16,166.13,62.32]
[1747753698464,0.03951563,166.16,166.14,6.0173]
[1747753698851,0.03951563,166.16,166.13,62.32]
[1747753699056,0.03951563,166.16,166.15,6.0169]
[1747753699562,6.05631563,166.16,166.12,6.0178]
[1747753699763,0.03951563,166.16,166.08,0.99385402]
[1747753699966,78.58391428,166.16,166.08,0.99385402]
[1747753700266,5.9163,166.15,166.08,0.99385402]
[1747753700667,0.03951563,166.16,166.09,62.32]
[1747753701070,0.03951563,166.16,166.12,6.0178]
[1747753701268,0.03951563,166.16,166.09,62.32]
[1747753701563,6.0171,166.15,166.09,62.32]
[1747753701764,0.03951563,166.16,166.09,62.32]
[1747753702165,0.03951563,166.16,166.14,6.0171]
[1747753702368,0.03951563,166.16,166.09,62.32]
[1747753702569,6.0172,166.15,166.11,6.0183]
[1747753702869,0.03951563,166.16,166.11,6.0183]
[1747753703068,0.03951563,166.16,166.09,62.32]
[1747753703267,0.03951563,166.16,166.13,6.0174]
[1747753703464,0.03951563,166.16,166.09,62.32]
[1747753703665,6.0172,166.15,166.11,6.0182]
[1747753704271,6.0175,166.14,166.11,6.0182]
[1747753704469,0.03951563,166.16,166.12,6.0179]
[1747753704666,0.03951563,166.16,166.09,62.32]
[1747753705871,0.03951563,166.16,166.15,6.0169]
[1747753706959,6.0146,166.22,166.19,6.0152]
[1747753707163,6.0146,166.22,166.14,62.3]
[1747753707668,6.0148,166.21,166.19,6.0153]
[1747753708071,0.04339556,166.22,166.18,62.33888073]
[1747753708274,0.03978704,166.22,166.18,62.34125733]
[1747753709174,0.03978704,166.22,166.21,6.0148]
[1747753712971,6.012,166.29,166.26,6.0128]
[1747753713274,62.28,166.28,166.19,62.28]
[1747753713572,78.50439865,166.28,166.17,6.0161]
[1747753713770,5.968,166.27,166.16,64.2849]
[1747753713976,6.0153,166.2,166.17,6.0162]
[1747753714175,0.04218272,166.23,166.17,0.04088212]
[1747753714377,62.32218272,166.23,166.17,0.04088212]
[1747753714575,62.32218272,166.23,166.13,0.99385402]
[1747753714576,16.22439865,166.2,166.13,0.99385402]
[1747753714879,66.2425,166.19,166.13,0.99385402]
[1747753715071,6.0173,166.14,166.13,0.99385402]
[1747753715377,62.28,166.15,166.07,62.28]
[1747753715580,62.28,166.15,166.11,1.37118748]
[1747753715581,62.3222919,166.15,166.11,1.37118748]
[1747753716475,62.3222919,166.15,166.11,0.04517444]
[1747753716676,6.018,166.12,166.11,0.04517444]
[1747753716881,62.3222919,166.15,166.04,63.78472324]
[1747753717072,62.28,166.15,166.04,63.78472324]
[1747753717273,6.0183,166.12,166.07,6.0195]
[1747753717676,6.0183,166.12,166.04,62.28]
[1747753717877,0.04468963,166.1,166.04,62.28]
[1747753718985,0.04468963,166.1,166.09,6.0191]
[1747753719486,0.04468963,166.1,166.08,68.2993]
[1747753719982,0.04468963,166.1,166.08,62.28]
[1747753720185,0.04468963,166.1,166.09,6.0191]
[1747753722084,62.3,166.18,166.08,62.28]
[1747753722275,6.0175,166.14,166.08,62.28]
[1747753722680,6.0171,166.15,166.08,62.28]
[1747753722882,0.04374104,166.13,166.1,0.04169619]
[1747753723078,0.04374104,166.13,166.12,6.0177]
[1747753724473,62.3,166.21,166.12,62.3]
[1747753724781,6.0152,166.2,166.12,62.3]
[1747753725278,62.3,166.21,166.12,62.3]
[1747753725482,0.04531872,166.18,166.15,0.04488477]
[1747753725677,0.04531872,166.18,166.15,6.06178477]
[1747753725888,0.04531872,166.18,166.15,0.04488477]
[1747753727581,6.0166,166.16,166.15,0.04488477]
[1747753734179,2.0378,166.17,166.15,0.04488477]
[1747753734386,0.04531872,166.18,166.15,0.04488477]
[1747753734889,0.04531872,166.18,166.16,6.0166]
[1747753735094,0.04531872,166.18,166.15,0.04488477]
[1747753735595,0.04531872,166.18,166.17,6.0162]
[1747753737994,0.04531872,166.18,166.17,68.2962]
[1747753740603,4.1821,166.27,166.17,68.3]
[1747753740899,4.1821,166.27,166.17,62.28]
[1747753741092,4.1821,166.27,166.17,63.78403506]
[1747753741293,62.28,166.29,166.17,63.78403506]
[1747753741498,0.04291389,166.25,166.21,0.04062571]
[1747753741696,0.04291389,166.25,166.22,62.28]
[1747753742001,0.04291389,166.25,166.22,68.2941]
[1747753742403,0.04291389,166.25,166.22,62.28]
[1747753742590,6.0144,166.23,166.21,0.04062571]
[1747753742797,0.04291389,166.25,166.21,0.04062571]
[1747753742995,6.0144,166.23,166.21,0.04062571]
[1747753743198,0.04291389,166.25,166.21,0.04062571]
[1747753743801,6.0144,166.22,166.21,0.04062571]
[1747753746309,6.0142,166.23,166.21,0.04062571]
[1747753746902,6.0144,166.22,166.21,0.04062571]
[1747753748204,6.016,166.18,166.15,6.0168]
[1747753748997,6.016,166.18,166.14,68.2971]
[1747753749200,6.05666078,166.18,166.14,68.33952521]
[1747753749400,6.05666078,166.18,166.14,62.32242521]
[1747753749607,0.04066078,166.18,166.14,62.32242521]
[1747753750404,6.05676078,166.18,166.14,62.32242521]
[1747753750703,0.04066078,166.18,166.14,62.32242521]
[1747753751205,6.0165,166.17,166.14,62.32242521]
[1747753751806,0.04066078,166.18,166.14,62.32242521]
[1747753751807,6.05656078,166.18,166.14,62.32242521]
[1747753752107,0.04066078,166.18,166.14,62.32242521]
[1747753752503,0.04066078,166.18,166.15,6.0167]
[1747753753204,0.04066078,166.18,166.16,6.0166]
[1747753753510,0.04066078,166.18,166.14,62.32242521]
[1747753753812,1.9957,166.27,166.14,62.32242521]
[1747753754112,62.28,166.28,166.14,62.28]
[1747753754408,4.0588,166.3,166.24,6.0136]
[1747753754608,6.0128,166.27,166.24,6.0136]
[1747753754813,0.0425395,166.27,166.24,6.05230502]
[1747753755114,6.0552395,166.27,166.24,6.05230502]
[1747753755606,0.0425395,166.27,166.24,0.03870502]
[1747753756202,0.0425395,166.27,166.25,6.0133]
[1747753756407,0.0425395,166.27,166.24,0.03870502]
[1747753756609,0.0425395,166.27,166.26,6.013]
[1747753762410,0.0425395,166.27,166.25,68.2733]
[1747753762711,0.0425395,166.27,166.24,0.03870502]
[1747753763209,0.0425395,166.27,166.24,6.05210502]
[1747753764612,0.0425395,166.27,166.24,0.03870502]
[1747753765203,0.0425395,166.27,166.26,6.013]
[1747753768510,0.0425395,166.27,166.26,68.253]
[1747753769511,0.0425395,166.27,166.25,6.0132]
[1747753770116,6.0551395,166.27,166.24,68.29230502]
[1747753770310,0.0425395,166.27,166.24,62.27870502]
[1747753771105,0.0425395,166.27,166.26,6.013]
[1747753771907,0.0425395,166.27,166.25,6.0132]
[1747753772513,0.0425395,166.27,166.26,6.013]
[1747753772715,0.0425395,166.27,166.24,62.27870502]
[1747753773112,0.0425395,166.27,166.24,0.03870502]
[1747753773911,6.013,166.26,166.24,0.03870502]
[1747753774519,6.0552395,166.27,166.24,0.03870502]
[1747753774814,0.0425395,166.27,166.24,0.03870502]
[1747753775213,6.013,166.26,166.24,0.03870502]
[1747753776517,0.0425395,166.27,166.24,0.03870502]
[1747753777117,6.0132,166.26,166.24,0.03870502]
[1747753777718,6.0133,166.25,166.24,0.03870502]
[1747753778111,0.0425395,166.27,166.24,0.03870502]
[1747753778620,6.0131,166.26,166.24,0.03870502]